bitfinex/quotes_BTCUSD_20241222
["timestamp","ask_amount","ask_price","bid_price","bid_amount"]
[1734881564398,0.00054385,95412.0,95411.0,0.30134851]
[1734881564603,0.00054385,95412.0,95411.0,0.290719]
[1734881565847,0.00054385,95412.0,95411.0,0.285719]
[1734881566044,0.00054385,95412.0,95411.0,0.3880274]
[1734881566433,0.00054385,95412.0,95411.0,0.3870274]
[1734881567571,0.00054385,95412.0,95411.0,0.3900274]
[1734881567779,0.00054385,95412.0,95411.0,0.3870274]
[1734881568363,0.00054385,95412.0,95411.0,0.39742749]
[1734881568753,0.00054385,95412.0,95411.0,0.54742749]
[1734881568935,0.00054385,95412.0,95411.0,0.60334967]
[1734881569085,0.00054385,95412.0,95411.0,0.64003014]
[1734881569295,0.00054385,95412.0,95411.0,0.64203014]
[1734881569524,0.00054385,95412.0,95411.0,0.64003014]
[1734881569955,0.00054385,95412.0,95411.0,0.64603014]
[1734881570275,0.00054385,95412.0,95411.0,0.64003014]
[1734881570445,0.00054385,95412.0,95411.0,0.64503014]
[1734881571054,2.5e-07,95415.0,95414.0,0.2]
[1734881571284,0.0001712,95448.0,95427.0,0.309584]
[1734881571285,8e-07,95432.0,95427.0,0.309584]
[1734881571497,8e-07,95432.0,95431.0,0.3513084]
[1734881571660,8e-07,95432.0,95431.0,0.34391105]
[1734881571858,8e-07,95432.0,95431.0,0.20592218]
[1734881572088,8e-07,95432.0,95431.0,0.15]
[1734881572326,8e-07,95432.0,95431.0,0.20696989]
[1734881572474,8e-07,95432.0,95431.0,0.09025064]
[1734881572663,8e-07,95432.0,95431.0,0.09129835]
[1734881573094,8e-07,95432.0,95431.0,0.05696989]
[1734881573610,8e-07,95432.0,95431.0,0.00104771]
[1734881573832,8e-07,95432.0,95431.0,0.05696989]
[1734881573983,8e-07,95432.0,95431.0,0.359575]
[1734881574180,8e-07,95432.0,95431.0,0.360575]
[1734881574980,8e-07,95432.0,95431.0,0.210575]
[1734881576455,8e-07,95432.0,95431.0,0.26649718]
[1734881576650,8e-07,95432.0,95431.0,0.36780558]
[1734881577189,8e-07,95432.0,95431.0,0.36680558]
[1734881577361,8e-07,95432.0,95431.0,0.40713404]
[1734881577560,8e-07,95432.0,95431.0,0.40113404]
[1734881578949,8e-07,95432.0,95431.0,0.55113404]
[1734881579312,8e-07,95432.0,95431.0,0.55313404]
[1734881579504,8e-07,95432.0,95431.0,0.55113404]
[1734881579714,8e-07,95432.0,95431.0,0.55313404]
[1734881579843,8e-07,95432.0,95431.0,0.51880558]
[1734881580063,8e-07,95432.0,95431.0,0.55113404]
[1734881580276,8e-07,95432.0,95431.0,0.55813404]
[1734881580519,8e-07,95432.0,95431.0,0.52380558]
[1734881580720,8e-07,95432.0,95431.0,0.51680558]
[1734881581293,8e-07,95432.0,95431.0,0.209575]
[1734881581612,8e-07,95432.0,95431.0,0.212575]
[1734881582856,8e-07,95432.0,95431.0,0.209575]
[1734881583215,8e-07,95432.0,95431.0,0.210575]
[1734881584715,8e-07,95432.0,95431.0,0.4608834]
[1734881584985,8e-07,95432.0,95431.0,0.55301941]
[1734881585490,8e-07,95432.0,95431.0,0.60894159]
[1734881585989,8e-07,95432.0,95431.0,0.64327005]
[1734881586371,8e-07,95432.0,95431.0,0.60894159]
[1734881586720,8e-07,95432.0,95431.0,0.78957005]
[1734881586893,8e-07,95432.0,95431.0,0.69357005]
[1734881587096,8e-07,95432.0,95431.0,0.89357005]
[1734881587700,8e-07,95432.0,95431.0,0.88957005]
[1734881588027,8e-07,95432.0,95431.0,0.79157005]
[1734881588441,8e-07,95432.0,95431.0,0.59931941]
[1734881588793,8e-07,95432.0,95431.0,0.60431941]
[1734881590123,8e-07,95432.0,95431.0,0.59931941]
[1734881590556,8e-07,95432.0,95431.0,0.60031941]
[1734881593431,1e-06,95438.0,95437.0,0.559562]
[1734881593575,1e-06,95438.0,95437.0,0.6608704]
[1734881593771,1e-06,95438.0,95437.0,0.5608704]
[1734881594058,1e-06,95438.0,95437.0,0.6608704]
[1734881594175,1e-06,95438.0,95437.0,0.71679258]
[1734881594621,1e-06,95438.0,95437.0,0.75112104]
[1734881595240,1e-06,95438.0,95437.0,0.75812104]
[1734881596377,1e-06,95438.0,95437.0,0.72379258]
[1734881596675,1e-06,95438.0,95437.0,0.75812104]
[1734881596875,0.0001326,95446.0,95442.0,0.1]
[1734881597107,0.00029563,95446.0,95445.0,0.359544]
[1734881597378,0.00029563,95446.0,95445.0,0.4608524]
[1734881598263,0.00029563,95446.0,95445.0,0.4638524]
[1734881598783,0.00029563,95446.0,95445.0,0.55410304]
[1734881599033,0.00029563,95446.0,95445.0,0.51977458]
[1734881599209,0.00029563,95446.0,95445.0,0.4638524]
[1734881599772,0.00029563,95446.0,95445.0,0.49818086]
[1734881600196,0.00029563,95446.0,95445.0,0.4638524]
[1734881600754,0.00029563,95446.0,95445.0,0.4608524]
[1734881600960,7.3e-07,95454.0,95453.0,0.1]
[1734881601198,7.3e-07,95454.0,95453.0,0.35235573]
[1734881601398,7.3e-07,95454.0,95453.0,0.44155904]
[1734881602396,7.3e-07,95454.0,95453.0,0.44455904]
[1734881602794,7.3e-07,95454.0,95453.0,0.2543084]
[1734881603001,7.3e-07,95454.0,95453.0,0.003]
[1734881603416,0.05042456,95454.0,95453.0,0.003]
[1734881604162,0.05042456,95454.0,95451.0,0.20953]
[1734881604509,0.1013084,95453.0,95444.0,0.209545]
[1734881604910,0.05042383,95452.0,95444.0,0.209545]
[1734881605112,0.1013084,95451.0,95434.0,0.209567]
[1734881605317,0.209544,95446.0,95431.0,0.00033423]
[1734881605524,0.0821,95450.0,95431.0,0.00033423]
[1734881605525,0.209549,95443.0,95431.0,0.00033423]
[1734881605731,0.023,95441.0,95431.0,0.00033423]
[1734881605928,0.023,95444.0,95431.0,0.00033423]
[1734881605929,0.1013084,95440.0,95431.0,0.00033423]
[1734881606228,0.209557,95439.0,95431.0,0.00033423]
[1734881606479,0.1243084,95438.0,95431.0,0.00033423]
[1734881606902,0.023,95436.0,95431.0,0.00033423]
[1734881607060,0.1013084,95435.0,95431.0,0.00033423]
[1734881607269,0.12070218,95435.0,95431.0,0.00033423]
[1734881607981,0.01939378,95438.0,95432.0,0.209573]
[1734881608183,0.01939378,95438.0,95437.0,0.209562]
[1734881608409,0.09227358,95445.0,95434.0,0.02064139]
[1734881608616,0.09227358,95445.0,95444.0,0.209546]
[1734881608968,0.09227358,95445.0,95444.0,0.359546]
[1734881609819,0.09227358,95445.0,95444.0,0.360546]
[1734881610018,8.56e-05,95446.0,95444.0,0.359546]
[1734881610254,8.56e-05,95446.0,95445.0,0.15]
[1734881611408,8.56e-05,95446.0,95445.0,0.15104755]
[1734881611616,8.56e-05,95446.0,95445.0,0.26289804]
[1734881611848,8.56e-05,95446.0,95445.0,0.26185049]
[1734881612573,8.56e-05,95446.0,95445.0,0.26285049]
[1734881612721,8.56e-05,95446.0,95445.0,0.26185049]
[1734881613131,8.56e-05,95446.0,95445.0,0.26685049]
[1734881614157,8.56e-05,95446.0,95445.0,0.16554209]
[1734881615060,8.56e-05,95446.0,95445.0,0.005]
[1734881615374,8.56e-05,95446.0,95444.0,0.209546]
[1734881615575,8.56e-05,95446.0,95445.0,0.003]
[1734881615779,8.56e-05,95446.0,95444.0,0.209546]
[1734881618726,8.56e-05,95446.0,95444.0,0.210546]
[1734881618903,8.56e-05,95446.0,95444.0,0.209546]
[1734881619323,8.56e-05,95446.0,95444.0,0.210546]
[1734881620505,8.56e-05,95446.0,95444.0,0.209546]
[1734881621139,8.56e-05,95446.0,95444.0,0.2097172]
[1734881628187,8.56e-05,95446.0,95444.0,0.0001712]
[1734881628384,0.01926663,95445.0,95444.0,0.0001712]
[1734881629046,0.14357503,95445.0,95444.0,0.0001712]
[1734881629247,0.15421734,95445.0,95444.0,0.0011712]
[1734881629461,0.15421734,95445.0,95444.0,0.0001712]
[1734881629894,0.37076134,95445.0,95444.0,0.0011712]
[1734881630074,0.36376134,95445.0,95444.0,0.0001712]
[1734881630290,0.15421734,95445.0,95444.0,0.0001712]
[1734881631924,0.18504396,95445.0,95444.0,0.0001712]
[1734881632377,0.18504396,95445.0,95444.0,0.0041712]
[1734881632592,0.18504396,95445.0,95444.0,0.0001712]
[1734881632897,0.18504396,95445.0,95444.0,0.0041712]
[1734881633148,0.39458796,95445.0,95444.0,0.0041712]
[1734881633380,0.18504396,95445.0,95444.0,0.0041712]
[1734881633829,0.13495071,95445.0,95444.0,0.0041712]
[1734881634001,0.18511175,95445.0,95444.0,0.0041712]
[1734881634356,0.18511175,95445.0,95444.0,0.0001712]
[1734881634603,0.46171175,95445.0,95444.0,0.0001712]
[1734881634853,0.15146944,95445.0,95444.0,0.0001712]
[1734881635062,0.05016104,95445.0,95444.0,0.0001712]
[1734881635455,0.01929271,95445.0,95444.0,0.0001712]
[1734881635669,0.01929271,95445.0,95444.0,0.00121891]
[1734881635845,8.56e-05,95446.0,95444.0,0.0362962]
[1734881636049,8.56e-05,95446.0,95445.0,0.46189993]
[1734881636198,8.56e-05,95446.0,95445.0,0.4608524]
[1734881637026,8.56e-05,95446.0,95445.0,0.5437524]
[1734881637817,0.0030856,95446.0,95445.0,0.5447524]
[1734881638170,8.56e-05,95446.0,95445.0,0.5437524]
[1734881640581,8.56e-05,95446.0,95445.0,0.5447524]
[1734881640998,8.56e-05,95446.0,95445.0,0.5437524]
[1734881641398,8.56e-05,95446.0,95445.0,0.5447524]
[1734881643331,6e-07,95446.0,95445.0,0.5906524]
[1734881643732,6e-07,95446.0,95445.0,0.8136524]
[1734881643962,6e-07,95446.0,95445.0,0.84798086]
[1734881644197,6e-07,95446.0,95445.0,0.8136524]
[1734881644750,6e-07,95446.0,95445.0,0.8138236]
[1734881644970,6e-07,95446.0,95445.0,0.6908236]
[1734881645172,6e-07,95446.0,95445.0,0.4895152]
[1734881645282,6e-07,95446.0,95445.0,0.4436152]
[1734881645484,6e-07,95446.0,95445.0,0.3607152]
[1734881647524,6e-07,95446.0,95445.0,0.3597152]
[1734881647733,6e-07,95446.0,95445.0,0.3607152]
[1734881648131,6e-07,95446.0,95445.0,0.3597152]
[1734881650885,0.0010006,95446.0,95445.0,0.3597152]
[1734881651738,0.01931153,95473.0,95461.0,0.209509]
[1734881651949,0.01931153,95473.0,95472.0,0.359485]
[1734881652122,0.01931153,95473.0,95472.0,0.407085]
[1734881652511,0.01931153,95498.0,95473.0,0.359482]
[1734881652685,0.01931153,95498.0,95475.0,0.209478]
[1734881652842,0.01931153,95498.0,95475.0,0.359478]
[1734881653041,0.00025091,95476.0,95475.0,0.359478]
[1734881653687,0.00025091,95476.0,95475.0,0.38067243]
[1734881654288,0.00025091,95476.0,95475.0,0.39136019]
[1734881655400,9.1e-07,95476.0,95475.0,0.57186859]
[1734881655618,9.1e-07,95476.0,95475.0,0.61071966]
[1734881655822,9.1e-07,95476.0,95475.0,0.57186859]
[1734881656604,5.1e-07,95476.0,95475.0,0.57186859]
[1734881657435,5.1e-07,95476.0,95475.0,0.83370552]
[1734881657872,5.1e-07,95476.0,95475.0,0.79486859]
[1734881660314,8.56e-05,95528.0,95507.0,0.209408]
[1734881660456,0.00062887,95508.0,95507.0,0.209408]
[1734881661354,0.00162887,95508.0,95507.0,0.209408]
[1734881661798,0.00062887,95508.0,95507.0,0.209408]
[1734881662004,0.00062887,95508.0,95507.0,0.211408]
[1734881662517,7e-08,95510.0,95509.0,0.359404]
[1734881662720,2.4e-07,95510.0,95509.0,0.4607124]
[1734881664725,2.4e-07,95510.0,95509.0,0.359404]
[1734881665230,2.4e-07,95510.0,95509.0,0.360404]
[1734881665608,2.4e-07,95510.0,95509.0,0.359404]
[1734881666177,2.4e-07,95510.0,95509.0,0.209404]
[1734881666584,2.4e-07,95510.0,95509.0,0.210404]
[1734881667036,0.07970024,95510.0,95509.0,0.001]
[1734881667248,0.18100864,95510.0,95509.0,0.001]
[1734881668169,0.20032017,95510.0,95509.0,0.001]
[1734881668353,0.20032017,95510.0,95492.0,0.209439]
[1734881668503,0.1013084,95509.0,95492.0,0.209439]
[1734881668708,0.12061993,95509.0,95492.0,0.209439]
[1734881668912,0.12061993,95509.0,95497.0,0.209429]
[1734881669110,0.12061993,95509.0,95492.0,0.209439]
[1734881669313,0.12061993,95509.0,95496.0,0.209431]
[1734881669547,0.01931153,95508.0,95496.0,0.209431]
[1734881669715,0.1013084,95507.0,95496.0,0.209431]
[1734881669918,0.12061993,95507.0,95496.0,0.209431]
[1734881670505,0.01931153,95506.0,95496.0,0.209431]
[1734881670748,0.1013084,95505.0,95496.0,0.209431]
[1734881671106,0.12061993,95505.0,95496.0,0.209431]
[1734881671442,0.01931153,95504.0,95496.0,0.209431]
[1734881671638,0.1013084,95503.0,95496.0,0.209431]
[1734881672042,0.12061993,95503.0,95496.0,0.209431]
[1734881672383,0.12061993,95503.0,95496.0,0.210431]
[1734881672583,0.01931153,95502.0,95496.0,0.209431]
[1734881672783,0.1013084,95501.0,95496.0,0.209431]
[1734881673006,0.1013084,95501.0,95496.0,0.002]
[1734881673128,0.01931153,95500.0,95496.0,0.002]
[1734881673327,0.1013084,95499.0,95496.0,0.002]
[1734881673541,0.12061993,95499.0,95496.0,0.002]
[1734881674419,0.01931153,95498.0,95496.0,0.002]
[1734881674662,0.1013084,95497.0,95496.0,0.002]
[1734881674883,0.12061993,95497.0,95496.0,0.002]
[1734881675082,0.12061993,95497.0,95488.0,0.209449]
[1734881675443,0.01931153,95496.0,95488.0,0.209449]
[1734881675638,0.1013084,95495.0,95488.0,0.209449]
[1734881675839,0.12061993,95495.0,95488.0,0.209449]
[1734881676043,0.12061993,95495.0,95479.0,0.209468]
[1734881676550,0.1013084,95495.0,95475.0,0.01077055]
[1734881676754,0.01922936,95494.0,95488.0,0.005]
[1734881676967,0.1810084,95493.0,95488.0,0.005]
[1734881677152,0.209441,95492.0,95488.0,0.005]
[1734881677349,0.1013084,95491.0,95475.0,0.0001712]
[1734881678079,0.01922936,95490.0,95475.0,0.0001712]
[1734881678252,0.1013084,95489.0,95476.0,0.209476]
[1734881678559,0.12053776,95489.0,95475.0,0.0001712]
[1734881679147,0.01922936,95488.0,95475.0,0.0001712]
[1734881679468,0.1013084,95487.0,95481.0,0.209464]
[1734881679720,0.01922936,95488.0,95485.0,0.209454]
[1734881679915,0.01922936,95487.0,95485.0,0.209454]
[1734881680327,0.01922936,95487.0,95485.0,0.41891]
[1734881680546,0.01922936,95488.0,95485.0,0.41891]
[1734881681195,8.584e-05,95510.0,95508.0,0.209406]
[1734881681196,0.01922936,95509.0,95508.0,0.209406]
[1734881682935,0.12053776,95509.0,95494.0,0.209437]
[1734881683076,0.1013084,95508.0,95480.0,0.0827]
[1734881683281,0.1013084,95508.0,95482.0,0.418926]
[1734881683483,0.12053776,95508.0,95497.0,0.209428]
[1734881683884,0.0751,95507.0,95492.0,0.209441]
[1734881684084,0.1013084,95506.0,95492.0,0.209441]
[1734881684752,0.1013084,95506.0,95483.0,0.209459]
[1734881684753,0.01922936,95505.0,95483.0,0.209459]
[1734881684949,0.1013084,95504.0,95487.0,0.209451]
[1734881685150,0.12053776,95504.0,95475.0,0.0001712]
[1734881685296,0.12053776,95504.0,95491.0,0.209443]
[1734881685724,0.01922936,95503.0,95491.0,0.209443]
[1734881685926,0.1013084,95502.0,95491.0,0.209443]
[1734881686138,0.1013084,95502.0,95488.0,0.209448]
[1734881686336,0.01922936,95501.0,95488.0,0.209448]
[1734881686541,0.1013084,95500.0,95488.0,0.209448]
[1734881686936,0.01922936,95499.0,95488.0,0.209448]
[1734881687145,0.1013084,95498.0,95488.0,0.209448]
[1734881687321,0.12053776,95498.0,95485.0,0.209456]
[1734881687819,0.12053776,95498.0,95488.0,0.004]
[1734881688020,0.01922936,95497.0,95488.0,0.004]
[1734881688289,0.1013084,95496.0,95485.0,0.209456]
[1734881688792,0.12053776,95496.0,95485.0,0.209456]
[1734881688943,0.01922936,95495.0,95485.0,0.209456]
[1734881689143,0.1013084,95494.0,95485.0,0.209456]
[1734881689403,0.1013084,95494.0,95480.0,0.209467]
[1734881689581,0.01922936,95493.0,95484.0,0.209458]
[1734881689790,0.1013084,95492.0,95484.0,0.209458]
[1734881689982,0.12053776,95492.0,95484.0,0.209458]
[1734881690362,0.01922936,95491.0,95484.0,0.209458]
[1734881690588,0.1013084,95490.0,95488.0,0.005]
[1734881690783,0.1013084,95490.0,95484.0,0.209458]
[1734881690987,0.12053776,95490.0,95484.0,0.209458]
[1734881691449,0.01922936,95489.0,95484.0,0.209458]
[1734881691604,0.1013084,95488.0,95484.0,0.209458]
[1734881691964,0.12053776,95488.0,95484.0,0.209458]
[1734881692138,0.01922936,95487.0,95484.0,0.209458]
[1734881692365,0.01922936,95487.0,95480.0,0.209467]
[1734881692366,0.12053776,95487.0,95480.0,0.209467]
[1734881692540,0.1013084,95486.0,95476.0,0.209475]
[1734881692779,0.12053776,95486.0,95476.0,0.209475]
[1734881692953,0.01922936,95486.0,95485.0,0.209456]
[1734881693189,0.01922936,95486.0,95485.0,0.290056]
[1734881693449,0.01922936,95486.0,95485.0,0.338156]
[1734881693875,0.01922936,95509.0,95508.0,0.209406]
[1734881694054,0.12053776,95509.0,95508.0,0.209406]
[1734881695024,0.01922936,95509.0,95508.0,0.209406]
[1734881695645,0.01922936,95509.0,95508.0,0.214406]
[1734881698292,0.01922936,95509.0,95508.0,0.209406]
[1734881698447,0.01922936,95527.0,95508.0,0.209406]
[1734881698653,0.10139424,95510.0,95508.0,0.209406]
[1734881699205,0.01922936,95509.0,95508.0,0.209406]
[1734881699952,0.10139424,95510.0,95508.0,0.209406]
[1734881700671,0.01934036,95509.0,95508.0,0.209406]
[1734881700872,0.01934036,95509.0,95506.0,0.20941]
[1734881701473,0.01934036,95509.0,95506.0,0.41882]
[1734881701887,0.01934036,95508.0,95506.0,0.20941]
[1734881702712,0.12064876,95507.0,95503.0,0.209417]
[1734881703003,0.12064876,95507.0,95501.0,0.20942]
[1734881703204,0.12064876,95507.0,95497.0,0.20943]
[1734881703396,0.01934036,95506.0,95501.0,0.20942]
[1734881703591,0.1013084,95505.0,95501.0,0.20942]
[1734881704092,0.01934036,95504.0,95497.0,0.20943]
[1734881704290,0.1013084,95503.0,95498.0,0.209428]
[1734881704538,0.1013084,95503.0,95497.0,0.20943]
[1734881704774,0.2013084,95501.0,95484.0,0.000171]
[1734881704987,0.15,95500.0,95484.0,0.000171]
[1734881705179,0.1,95496.0,95485.0,0.209456]
[1734881705432,0.1013084,95495.0,95484.0,0.000171]
[1734881705858,0.01934036,95494.0,95484.0,0.000171]
[1734881706043,0.1013084,95493.0,95491.0,0.209442]
[1734881706240,0.12064876,95493.0,95484.0,0.000171]
[1734881706539,0.12064876,95493.0,95485.0,0.209456]
[1734881706736,0.01934036,95492.0,95484.0,0.000171]
[1734881707066,0.1013084,95491.0,95484.0,0.000171]
[1734881707235,0.1013084,95491.0,95485.0,0.209456]
[1734881707450,0.01934036,95490.0,95484.0,0.000171]
[1734881707662,0.1013084,95489.0,95484.0,0.000171]
[1734881707836,0.12064876,95489.0,95484.0,0.000171]
[1734881708248,0.01934036,95488.0,95484.0,0.000171]
[1734881708449,0.1013084,95487.0,95484.0,0.000171]
[1734881709003,0.01934036,95486.0,95484.0,0.000171]
[1734881709214,0.1013084,95485.0,95484.0,0.000171]
[1734881709415,0.1013084,95485.0,95484.0,0.004171]
[1734881709622,0.1013084,95485.0,95484.0,0.000171]
[1734881709623,0.2013084,95485.0,95484.0,0.000171]
[1734881710074,0.12064876,95485.0,95484.0,0.005171]
[1734881710308,0.1013084,95485.0,95484.0,0.000171]
[1734881710751,0.09227358,95501.0,95484.0,0.000171]
[1734881710859,0.09227358,95501.0,95494.0,0.209435]
[1734881710860,0.1013084,95500.0,95494.0,0.209435]
[1734881711271,0.1013084,95500.0,95497.0,0.209428]
[1734881711467,0.1013084,95500.0,95484.0,0.000171]
[1734881711726,0.01936587,95499.0,95494.0,0.209436]
[1734881711936,0.1013084,95498.0,95494.0,0.209436]
[1734881712408,0.01936587,95497.0,95495.0,0.209434]
[1734881712629,0.1013084,95496.0,95495.0,0.209434]
[1734881713153,0.12067427,95496.0,95495.0,0.209434]
[1734881713559,0.12067427,95496.0,95495.0,0.213434]
[1734881713760,0.12067427,95496.0,95495.0,0.004]
[1734881715194,0.12067427,95496.0,95491.0,0.418886]
[1734881715774,0.1013084,95496.0,95495.0,0.005]
[1734881715981,0.1013084,95496.0,95491.0,0.209443]
[1734881716160,0.1013084,95496.0,95495.0,0.004]
[1734881716366,0.12067443,95496.0,95495.0,0.004]
[1734881716567,0.12067443,95496.0,95491.0,0.209443]
[1734881716967,0.01936603,95495.0,95491.0,0.212443]
[1734881717198,0.1013084,95494.0,95491.0,0.212614]
[1734881717703,0.12067443,95494.0,95491.0,0.212614]
[1734881717852,0.12067443,95494.0,95491.0,0.422057]
[1734881718254,0.01936603,95493.0,95491.0,0.422057]
[1734881718456,0.1013084,95492.0,95491.0,0.419057]
[1734881719039,0.12067443,95492.0,95491.0,0.419057]
[1734881723359,0.12067443,95492.0,95491.0,0.000171]
[1734881723570,0.12067443,95492.0,95491.0,0.006171]
[1734881724416,0.12067443,95492.0,95491.0,0.000171]
[1734881724561,0.12067443,95492.0,95491.0,0.004171]
[1734881726085,0.12067443,95492.0,95491.0,0.000171]
[1734881727109,0.12067443,95492.0,95491.0,0.002171]
[1734881727582,0.12067443,95492.0,95491.0,0.000171]
[1734881727790,0.12067443,95492.0,95491.0,0.005171]
[1734881727948,0.12067443,95492.0,95491.0,0.000171]
[1734881729392,0.12067443,95492.0,95491.0,0.003171]
[1734881729915,0.12067443,95492.0,95491.0,0.000171]
[1734881730125,0.12067443,95492.0,95491.0,0.003171]
[1734881731127,0.12067443,95492.0,95491.0,0.000171]
[1734881732508,0.12067443,95492.0,95491.0,0.003171]
[1734881732921,0.12067443,95492.0,95491.0,0.000171]
[1734881733268,0.12067443,95492.0,95491.0,0.002171]
[1734881733471,0.12067443,95492.0,95491.0,0.000171]
[1734881733921,0.12067443,95492.0,95491.0,0.003171]
[1734881734132,0.12067443,95492.0,95491.0,0.000171]
[1734881734520,0.12067443,95492.0,95491.0,0.002171]
[1734881737502,0.25255787,95492.0,95491.0,0.002171]
[1734881738116,0.1,95486.0,95484.0,0.000171]
[1734881738317,0.1013084,95485.0,95484.0,0.000171]
[1734881738691,0.2013084,95485.0,95484.0,0.000171]
[1734881738885,0.23319946,95485.0,95484.0,0.000171]
[1734881739068,0.25256549,95485.0,95484.0,0.000171]
[1734881740029,0.25256549,95485.0,95484.0,0.005171]
[1734881740370,0.25256549,95485.0,95484.0,0.000171]
[1734881740575,0.34591742,95485.0,95484.0,0.004171]
[1734881741843,0.59591742,95485.0,95484.0,0.004171]
[1734881742684,0.69688029,95485.0,95484.0,0.004171]
[1734881742909,0.1,95449.0,95445.0,0.0001712]
[1734881743131,0.1013084,95447.0,95445.0,0.0001712]
[1734881743362,0.2013084,95446.0,95445.0,0.0001712]
[1734881743564,0.22067443,95446.0,95445.0,0.0001712]
[1734881744150,0.22067443,95446.0,95445.0,0.00071447]
[1734881744355,0.31392308,95446.0,95445.0,0.00371447]
[1734881744788,0.21392308,95446.0,95445.0,0.07811447]
[1734881744959,0.21392308,95446.0,95445.0,0.08111447]
[1734881745565,0.21392308,95446.0,95445.0,0.12861447]
[1734881745566,0.12067443,95446.0,95445.0,0.12861447]
[1734881746587,0.12067443,95446.0,95445.0,0.12561447]
[1734881746988,0.12067443,95446.0,95445.0,0.13061447]
[1734881747493,0.12067443,95446.0,95445.0,0.12561447]
[1734881747845,0.1013084,95446.0,95445.0,0.13161447]
[1734881748051,0.1013084,95446.0,95445.0,0.12561447]
[1734881748462,0.1093084,95446.0,95445.0,0.12661447]
[1734881748662,0.1013084,95446.0,95445.0,0.12561447]
[1734881749182,0.1013084,95446.0,95445.0,0.00071447]
[1734881749622,0.12067443,95446.0,95445.0,0.00071447]
[1734881750199,0.1013084,95446.0,95445.0,0.00071447]
[1734881750545,0.1033084,95446.0,95445.0,0.00171447]
[1734881750675,0.12067443,95446.0,95445.0,0.00071447]
[1734881750876,0.12267443,95446.0,95445.0,0.00171447]
[1734881751313,0.12067443,95446.0,95445.0,0.00071447]
[1734881751519,0.1013084,95446.0,95445.0,0.00071447]
[1734881751753,0.12067443,95446.0,95445.0,0.00071447]
[1734881752250,0.12267443,95446.0,95445.0,0.00171447]
[1734881752820,0.22267443,95446.0,95445.0,0.00171447]
[1734881753924,0.22067443,95446.0,95445.0,0.00071447]
[1734881754254,0.22067443,95446.0,95445.0,0.00871447]
[1734881754255,0.12167443,95446.0,95445.0,0.00871447]
[1734881754490,0.12067443,95446.0,95445.0,0.00071447]
[1734881754926,0.12067443,95446.0,95445.0,0.00171447]
[1734881755125,0.12067443,95446.0,95445.0,0.00071447]
[1734881755504,0.12067443,95446.0,95445.0,0.00171447]
[1734881755706,0.12067443,95446.0,95445.0,0.00071447]
[1734881756956,0.12067443,95446.0,95445.0,0.07811447]
[1734881757761,0.12067443,95446.0,95445.0,0.09368692]
[1734881758172,0.12067443,95446.0,95445.0,0.14118692]
[1734881758374,0.01936603,95446.0,95445.0,0.13618692]
[1734881758570,0.01936603,95462.0,95461.0,0.209509]
[1734881758777,0.12067443,95462.0,95461.0,0.209509]
[1734881761421,0.12067443,95462.0,95461.0,0.212509]
[1734881763699,0.12067443,95462.0,95461.0,0.289609]
[1734881763909,0.01936603,95462.0,95461.0,0.485409]
[1734881764371,3e-08,95462.0,95461.0,0.508409]
[1734881764603,8.56e-05,95475.0,95474.0,0.359481]
[1734881764816,8.56e-05,95475.0,95474.0,0.442681]
[1734881765623,8.56e-05,95475.0,95474.0,0.443681]
[1734881765831,8.56e-05,95475.0,95474.0,0.44422427]
[1734881766036,8.56e-05,95475.0,95474.0,0.44322427]
[1734881766598,0.0050856,95475.0,95474.0,0.44322427]
[1734881766728,0.106394,95475.0,95474.0,0.21002427]
[1734881767117,0.106394,95475.0,95474.0,0.00054327]
[1734881767803,0.101394,95475.0,95474.0,0.00054327]
[1734881768200,0.103394,95475.0,95474.0,0.00154327]
[1734881768485,0.201394,95475.0,95474.0,0.00054327]
[1734881768905,0.201394,95475.0,95474.0,0.00254327]
[1734881769318,0.377194,95475.0,95474.0,0.00254327]
[1734881769701,0.40904489,95475.0,95474.0,0.00054327]
[1734881770206,0.65229354,95475.0,95474.0,0.00054327]
[1734881770555,0.72259354,95475.0,95474.0,0.00054327]
[1734881770700,0.1,95451.0,95445.0,0.0001712]
[1734881770901,0.1013084,95449.0,95445.0,0.00029612]
[1734881772641,0.1033084,95449.0,95445.0,0.00029612]
[1734881773238,0.2013084,95446.0,95445.0,0.00029612]
[1734881773561,0.3013084,95446.0,95445.0,0.00029612]
[1734881774780,0.48422923,95446.0,95445.0,0.00029612]
[1734881774987,0.57752107,95446.0,95445.0,0.00029612]
[1734881775678,0.57652107,95446.0,95445.0,0.00029612]
[1734881776008,0.82889481,95446.0,95445.0,0.00029612]
[1734881776541,0.2,95432.0,95399.0,0.292844]
[1734881776754,0.48322923,95432.0,95431.0,0.00025091]
[1734881777336,0.50268741,95432.0,95431.0,0.00025091]
[1734881778550,0.22076658,95432.0,95431.0,0.00025091]
[1734881778827,0.66543216,95432.0,95431.0,0.00025091]
[1734881779150,0.66743216,95432.0,95431.0,0.00025091]
[1734881779348,0.56743216,95432.0,95431.0,0.00025091]
[1734881779553,0.66743216,95432.0,95431.0,0.00025091]
[1734881779758,0.41403864,95432.0,95431.0,0.00025091]
[1734881780371,0.39458046,95432.0,95431.0,0.00025091]
[1734881780585,0.19458046,95432.0,95426.0,0.41341991]
[1734881780844,0.1013084,95431.0,95426.0,0.41341991]
[1734881780985,0.1013084,95429.0,95422.0,0.083]
[1734881781335,0.1013084,95423.0,95421.0,0.00016303]
[1734881781542,0.1013084,95422.0,95421.0,0.00016303]
[1734881781770,0.12073627,95422.0,95421.0,0.00016303]
[1734881782299,0.22073627,95422.0,95421.0,0.00016303]
[1734881783391,0.32073627,95422.0,95421.0,0.00116303]
[1734881784475,0.32073627,95422.0,95421.0,0.00016303]
[1734881785659,0.1,95405.0,95393.0,0.209658]
[1734881785917,0.1013084,95401.0,95393.0,0.209658]
[1734881786626,0.1013084,95401.0,95391.0,0.0752]
[1734881786627,0.1013084,95401.0,95397.0,0.209648]
[1734881787789,0.1013084,95401.0,95399.0,0.209645]
[1734881788429,0.1023084,95401.0,95399.0,0.209645]
[1734881788877,0.1013084,95401.0,95399.0,0.209645]
[1734881789073,0.1023084,95401.0,95399.0,0.209645]
[1734881789551,0.1013084,95401.0,95399.0,0.209645]
[1734881789725,0.1013084,95401.0,95399.0,0.211645]
[1734881791659,0.1013084,95401.0,95399.0,0.002]
[1734881792577,0.2013084,95400.0,95399.0,0.002]
[1734881792902,0.1,95399.0,95390.0,0.13299747]
[1734881793107,0.2013084,95399.0,95390.0,0.13299747]
[1734881793529,0.12070032,95399.0,95390.0,0.13299747]
[1734881794114,0.22270032,95399.0,95390.0,0.13299747]
[1734881794321,0.12270032,95399.0,95390.0,0.13299747]